bitfinex-derivatives/quotes_BTCF0:USTF0_20230101
["timestamp","ask_amount","ask_price","bid_price","bid_amount"]
[1672549411997,0.06624614,16535.0,16534.0,0.07450366]
[1672549412207,0.06624614,16535.0,16534.0,0.37520366]
[1672549437015,0.06624614,16535.0,16534.0,0.07450366]
[1672549437330,0.00576837,16535.0,16534.0,0.37520366]
[1672549438064,0.00576837,16535.0,16534.0,0.37505061]
[1672549443318,0.06624614,16535.0,16534.0,0.37505061]
[1672549447948,0.06624614,16535.0,16534.0,0.07435061]
[1672549448262,0.06624614,16535.0,16534.0,0.37505061]
[1672549463088,0.06624614,16535.0,16534.0,0.07435061]
[1672549463305,0.06624614,16535.0,16534.0,0.37505061]
[1672549472558,0.06624614,16535.0,16534.0,0.07435061]
[1672549472772,0.06624614,16535.0,16534.0,0.37505061]
[1672549476146,0.06624614,16535.0,16534.0,0.07435061]
[1672549476450,0.06624614,16535.0,16534.0,0.37505061]
[1672549478130,0.06624614,16535.0,16534.0,0.07435061]
[1672549478336,0.06624614,16535.0,16534.0,0.37505061]
[1672549490222,0.06624614,16535.0,16534.0,0.37494308]
[1672549492123,0.06624614,16535.0,16534.0,0.07424308]
[1672549492651,0.06624614,16535.0,16534.0,0.37494308]
[1672549496220,0.06624614,16535.0,16534.0,0.07424308]
[1672549496434,0.06624614,16535.0,16534.0,0.37494308]
[1672549497383,0.00576837,16535.0,16534.0,0.37494308]
[1672549498014,0.00576837,16535.0,16534.0,0.07424308]
[1672549498223,0.00576837,16535.0,16534.0,0.37494308]
[1672549503382,0.06624614,16535.0,16534.0,0.37494308]
[1672549504015,0.06624614,16535.0,16534.0,0.07424308]
[1672549504219,0.06624614,16535.0,16534.0,0.37494308]
[1672549517468,0.06624614,16535.0,16534.0,0.07424308]
[1672549517679,0.06624614,16535.0,16534.0,0.37494308]
[1672549523036,0.06624614,16535.0,16534.0,0.07424308]
[1672549523247,0.06624614,16535.0,16534.0,0.37494308]
[1672549532282,0.0660989,16535.0,16534.0,0.37494308]
[1672549536173,0.0660989,16535.0,16534.0,0.07424308]
[1672549536384,0.0660989,16535.0,16534.0,0.37494308]
[1672549546588,0.0660989,16535.0,16534.0,0.07424308]
[1672549546806,0.0660989,16535.0,16534.0,0.37494308]
[1672549548480,0.0660989,16535.0,16534.0,0.07424308]
[1672549548793,0.0660989,16535.0,16534.0,0.37494308]
[1672549557408,0.0660989,16535.0,16534.0,0.07424308]
[1672549557727,0.00562113,16535.0,16534.0,0.37494308]
[1672549563603,0.0660989,16535.0,16534.0,0.37494308]
[1672549566241,0.0660989,16535.0,16534.0,0.07424308]
[1672549566441,0.0660989,16535.0,16534.0,0.37494308]
[1672549572429,0.0660989,16535.0,16534.0,0.07424308]
[1672549572644,0.0660989,16535.0,16534.0,0.37494308]
[1672549582521,0.0660989,16535.0,16534.0,0.07424308]
[1672549582730,0.0660989,16535.0,16534.0,0.37494308]
[1672549583259,0.0660989,16535.0,16534.0,0.07424308]
[1672549583476,0.0660989,16535.0,16534.0,0.37494308]
[1672549586714,0.0660989,16535.0,16534.0,0.37487247]
[1672549607422,0.0660989,16535.0,16534.0,0.07417247]
[1672549607634,0.0660989,16535.0,16534.0,0.37487247]
[1672549617519,0.00562113,16535.0,16534.0,0.37487247]
[1672549623631,0.0660989,16535.0,16534.0,0.37487247]
[1672549632769,0.0660989,16535.0,16534.0,0.37476091]
[1672549647492,0.0660989,16535.0,16534.0,0.07406091]
[1672549647695,0.0660989,16535.0,16534.0,0.37476091]
[1672549667449,0.0660989,16535.0,16534.0,0.07406091]
[1672549667663,0.0660989,16535.0,16534.0,0.37476091]
[1672549668723,0.0660989,16535.0,16534.0,0.07406091]
[1672549669140,0.0660989,16535.0,16534.0,0.37476091]
[1672549677549,0.00562113,16535.0,16534.0,0.37460298]
[1672549683653,0.0660989,16535.0,16534.0,0.37460298]
[1672549722040,0.0660989,16535.0,16534.0,0.07390298]
[1672549722351,0.0660989,16535.0,16534.0,0.37460298]
[1672549724978,0.0660989,16535.0,16534.0,0.07390298]
[1672549725187,0.0660989,16535.0,16534.0,0.37460298]
[1672549729084,0.0660989,16535.0,16534.0,0.37444424]
[1672549729498,0.0660989,16535.0,16534.0,0.07374424]
[1672549729715,0.0660989,16535.0,16534.0,0.37444424]
[1672549737695,0.00562113,16535.0,16534.0,0.37444424]
[1672549739804,0.00562113,16535.0,16534.0,0.07374424]
[1672549740016,0.00562113,16535.0,16534.0,0.37444424]
[1672549743812,0.0660989,16535.0,16534.0,0.37444424]
[1672549751582,0.0660989,16535.0,16534.0,0.07374424]
[1672549751902,0.0660989,16535.0,16534.0,0.37444424]
[1672549765046,0.0660989,16535.0,16534.0,0.07374424]
[1672549765257,0.0660989,16535.0,16534.0,0.37444424]
[1672549779976,0.0660989,16535.0,16534.0,0.3257]
[1672549782397,0.0660989,16535.0,16534.0,0.32547685]
[1672549788945,0.0660989,16535.0,16528.0,0.3092]
[1672549788946,0.9712989,16535.0,16532.0,0.3007]
[1672549789141,0.6045,16533.0,16532.0,0.3007]
[1672549790404,0.6045,16533.0,16532.0,0.3167]
[1672549790614,0.6205,16533.0,16532.0,0.3167]
[1672549791344,0.6045,16533.0,16532.0,0.3007]
[1672549791554,0.6205,16533.0,16532.0,0.3167]
[1672549791766,0.6045,16533.0,16532.0,0.3007]
[1672549791977,0.6165,16533.0,16532.0,0.3067]
[1672549797498,0.6165,16533.0,16532.0,0.006]
[1672549797773,0.05,16532.0,16530.0,0.3007]
[1672549799663,0.067,16532.0,16530.0,0.3107]
[1672549802179,0.067,16532.0,16531.0,0.05]
[1672549803133,0.05,16532.0,16531.0,0.05]
[1672549803334,0.064,16532.0,16531.0,0.06]
[1672549803913,0.72898874,16532.0,16531.0,0.06]
[1672549805329,0.72898874,16532.0,16531.0,0.01]
[1672549805755,0.72898874,16532.0,16531.0,0.06]
[1672549809007,0.72898874,16532.0,16531.0,0.01]
[1672549812893,0.72898874,16532.0,16531.0,0.3107]
[1672549814682,0.72898874,16532.0,16531.0,0.01]
[1672549814897,0.72898874,16532.0,16531.0,0.3107]
[1672549825511,0.72898874,16532.0,16531.0,0.01]
[1672549825721,0.73198874,16532.0,16531.0,0.003]
[1672549830033,0.73198874,16532.0,16531.0,0.053]
[1672549830876,0.73198874,16532.0,16531.0,0.003]
[1672549834777,0.73198874,16532.0,16531.0,0.053]
[1672549835917,0.73198874,16532.0,16531.0,0.003]
[1672549837084,0.73198874,16532.0,16531.0,0.053]
[1672549843710,0.73198874,16532.0,16531.0,0.3537]
[1672549846018,0.73198874,16532.0,16531.0,0.3037]
[1672549849681,0.73198874,16532.0,16531.0,0.30351411]
[1672549857777,0.067,16532.0,16531.0,0.30351411]
[1672549857997,0.067,16532.0,16531.0,0.00281411]
[1672549860725,0.067,16532.0,16531.0,0.30351411]
[1672549862204,0.067,16532.0,16531.0,0.00281411]
[1672549863877,0.73198874,16532.0,16531.0,0.00281411]
[1672549864826,0.73181184,16532.0,16531.0,0.00281411]
[1672549897298,1.03251184,16532.0,16531.0,0.00281411]
[1672549900341,0.73181184,16532.0,16531.0,0.00281411]
[1672549901822,0.73181184,16532.0,16531.0,0.30351411]
[1672549902454,0.07748874,16532.0,16531.0,0.30351411]
[1672549902664,0.68198874,16532.0,16531.0,0.30351411]
[1672549903710,0.07748874,16532.0,16531.0,0.30351411]
[1672549903923,0.68198874,16532.0,16531.0,0.30351411]
[1672549904975,0.07748874,16532.0,16531.0,0.30351411]
[1672549905713,0.73198874,16532.0,16531.0,0.30351411]
[1672549905918,0.68198874,16532.0,16531.0,0.30351411]
[1672549906966,0.07748874,16532.0,16531.0,0.30351411]
[1672549907171,0.73198874,16532.0,16531.0,0.30351411]
[1672549907389,0.68198874,16532.0,16531.0,0.30351411]
[1672549908232,0.07748874,16532.0,16531.0,0.30351411]
[1672549908554,0.68198874,16532.0,16531.0,0.30351411]
[1672549909389,0.07748874,16532.0,16531.0,0.30351411]
[1672549910022,0.73198874,16532.0,16531.0,0.30351411]
[1672549910342,0.68198874,16532.0,16531.0,0.30351411]
[1672549911918,0.68198874,16532.0,16531.0,0.00281411]
[1672549912254,0.07748874,16532.0,16531.0,0.00281411]
[1672549912443,0.73198874,16532.0,16531.0,0.00281411]
[1672549912653,0.68198874,16532.0,16531.0,0.00281411]
[1672549913493,0.07748874,16532.0,16531.0,0.00281411]
[1672549913704,0.73198874,16532.0,16531.0,0.00281411]
[1672549914017,0.68198874,16532.0,16531.0,0.00281411]
[1672549914651,0.07748874,16532.0,16531.0,0.00281411]
[1672549914964,0.68198874,16532.0,16531.0,0.00281411]
[1672549915906,0.73198874,16532.0,16531.0,0.00259527]
[1672549916224,0.68198874,16532.0,16531.0,0.00259527]
[1672549917902,0.6215,16532.0,16531.0,0.00259527]
[1672549924099,0.68198874,16532.0,16531.0,0.00259527]
[1672549927881,0.07748874,16532.0,16531.0,0.00259527]
[1672549928092,0.73198874,16532.0,16531.0,0.00259527]
[1672549928515,0.68198874,16532.0,16531.0,0.00259527]
[1672549930716,0.07748874,16532.0,16531.0,0.00259527]
[1672549930932,0.73198874,16532.0,16531.0,0.00259527]
[1672549931139,0.68198874,16532.0,16531.0,0.00259527]
[1672549934658,0.07748874,16532.0,16531.0,0.00259527]
[1672549940914,0.68198874,16532.0,16531.0,0.00259527]
[1672549945381,0.07748874,16532.0,16531.0,0.00259527]
[1672549945528,0.73198874,16532.0,16531.0,0.00259527]
[1672549945742,0.68198874,16532.0,16531.0,0.00259527]
[1672549946373,0.07748874,16532.0,16531.0,0.00259527]
[1672549946589,0.73198874,16532.0,16531.0,0.00259527]
[1672549946906,0.68198874,16532.0,16531.0,0.00259527]
[1672549947644,0.07748874,16532.0,16531.0,0.00259527]
[1672549947856,0.73198874,16532.0,16531.0,0.00259527]
[1672549948167,0.68198874,16532.0,16531.0,0.00259527]
[1672549948810,0.07748874,16532.0,16531.0,0.00259527]
[1672549949001,0.73198874,16532.0,16531.0,0.00259527]
[1672549949213,0.68198874,16532.0,16531.0,0.00259527]
[1672549949950,0.07748874,16532.0,16531.0,0.00259527]
[1672549950893,0.73198874,16532.0,16531.0,0.00259527]
[1672549951103,0.68198874,16532.0,16531.0,0.00259527]
[1672549952054,0.07748874,16532.0,16531.0,0.00259527]
[1672549952905,0.73198874,16532.0,16531.0,0.00259527]
[1672549953100,0.68198874,16532.0,16531.0,0.00259527]
[1672549953986,0.73198874,16532.0,16531.0,0.00259527]
[1672549954152,0.68198874,16532.0,16531.0,0.00259527]
[1672549956102,0.07748874,16532.0,16531.0,0.00259527]
[1672549956256,0.73198874,16532.0,16531.0,0.00259527]
[1672549956466,0.68198874,16532.0,16531.0,0.00259527]
[1672549957310,0.07748874,16532.0,16531.0,0.30329527]
[1672549957627,0.73198874,16532.0,16531.0,0.30329527]
[1672549957835,0.68198874,16532.0,16531.0,0.30329527]
[1672549958458,0.07748874,16532.0,16531.0,0.30329527]
[1672549958675,0.73198874,16532.0,16531.0,0.30329527]
[1672549958885,0.68198874,16532.0,16531.0,0.30329527]
[1672549959725,0.07748874,16532.0,16531.0,0.30329527]
[1672549959937,0.73198874,16532.0,16531.0,0.30329527]
[1672549960146,0.68198874,16532.0,16531.0,0.30329527]
[1672549960666,0.68198874,16532.0,16531.0,0.30308005]
[1672549960885,0.07748874,16532.0,16531.0,0.30308005]
[1672549961092,0.73198874,16532.0,16531.0,0.30308005]
[1672549961294,0.68198874,16532.0,16531.0,0.30308005]
[1672549962355,0.73198874,16532.0,16531.0,0.30308005]
[1672549962558,0.68198874,16532.0,16531.0,0.30308005]
[1672549962981,0.68198874,16532.0,16531.0,0.00238005]
[1672549963408,0.07748874,16532.0,16531.0,0.00238005]
[1672549963607,0.73198874,16532.0,16531.0,0.00238005]
[1672549963823,0.68198874,16532.0,16531.0,0.00238005]
[1672549967509,0.07748874,16532.0,16531.0,0.00238005]
[1672549967719,0.68198874,16532.0,16531.0,0.00238005]
[1672549968560,0.07748874,16532.0,16531.0,0.00238005]
[1672549968775,0.73198874,16532.0,16531.0,0.00238005]
[1672549968985,0.68198874,16532.0,16531.0,0.00238005]
[1672549978127,0.6215,16532.0,16531.0,0.00238005]
[1672549978565,0.017,16532.0,16531.0,0.00238005]
[1672549978864,0.067,16532.0,16531.0,0.00238005]
[1672549982649,0.067,16532.0,16531.0,0.05238005]
[1672549984120,0.73198874,16532.0,16531.0,0.05238005]
[1672549994213,0.73198874,16532.0,16531.0,0.00238005]
[1672549994628,0.73177077,16532.0,16531.0,0.00238005]
[1672550009153,0.73177077,16532.0,16531.0,0.05238005]
[1672550010624,0.81398874,16532.0,16531.0,0.05]
[1672550012838,0.76398874,16532.0,16531.0,0.05]
[1672550018202,0.15948874,16532.0,16531.0,0.05]
[1672550022604,0.15948874,16532.0,16531.0,0.3507]
[1672550023466,0.15948874,16532.0,16531.0,0.05]
[1672550023656,0.15948874,16532.0,16531.0,0.3507]
[1672550033427,0.15948874,16532.0,16531.0,0.05]
[1672550033643,0.15948874,16532.0,16531.0,0.3507]
[1672550038060,0.099,16532.0,16531.0,0.3507]
[1672550041562,0.099,16532.0,16531.0,0.05]
[1672550041765,0.099,16532.0,16531.0,0.3507]
[1672550042815,0.099,16532.0,16531.0,0.35049421]
[1672550044075,0.15948874,16532.0,16531.0,0.35049421]
[1672550056350,0.15948874,16532.0,16531.0,0.04979421]
[1672550056561,0.15948874,16532.0,16531.0,0.35049421]
[1672550068451,0.15948874,16532.0,16531.0,0.04979421]
[1672550068655,0.15948874,16532.0,16531.0,0.35049421]
[1672550079383,0.15948874,16532.0,16531.0,0.04979421]
[1672550079600,0.15948874,16532.0,16531.0,0.35049421]
[1672550091368,0.15948874,16532.0,16531.0,0.04979421]
[1672550091897,0.15948874,16532.0,16531.0,0.35049421]
[1672550093362,0.15948874,16532.0,16531.0,0.04979421]
[1672550093687,0.15948874,16532.0,16531.0,0.35035135]
[1672550097572,0.15948874,16532.0,16531.0,0.04965135]
[1672550097785,0.15948874,16532.0,16531.0,0.35035135]
[1672550098100,0.099,16532.0,16531.0,0.35035135]
[1672550098302,0.099,16532.0,16531.0,0.04965135]
[1672550098513,0.099,16532.0,16531.0,0.35035135]
[1672550104096,0.15948874,16532.0,16531.0,0.35035135]
[1672550107878,0.15948874,16532.0,16531.0,0.04965135]
[1672550108200,0.15948874,16532.0,16531.0,0.35035135]
[1672550117658,0.15948874,16532.0,16531.0,0.04965135]
[1672550117869,0.15948874,16532.0,16531.0,0.35035135]
[1672550121661,0.15948874,16532.0,16531.0,0.04965135]
[1672550121862,0.15948874,16532.0,16531.0,0.35035135]
[1672550138470,0.15948874,16532.0,16531.0,0.04965135]
[1672550138681,0.15948874,16532.0,16531.0,0.35035135]
[1672550141414,0.15948874,16532.0,16531.0,0.04965135]
[1672550141628,0.15948874,16532.0,16531.0,0.35035135]
[1672550142047,0.15948874,16532.0,16531.0,0.04965135]
[1672550142367,0.15948874,16532.0,16531.0,0.35035135]
[1672550144779,0.15948874,16532.0,16531.0,0.35023539]
[1672550158246,0.099,16532.0,16531.0,0.35023539]
[1672550164240,0.15948874,16532.0,16531.0,0.35023539]
[1672550194403,0.15948874,16532.0,16531.0,0.04953539]
[1672550194612,0.15948874,16532.0,16531.0,0.35023539]
[1672550195876,0.15948874,16532.0,16531.0,0.3500841]
[1672550196718,0.15948874,16532.0,16531.0,0.0493841]
[1672550196945,0.15948874,16532.0,16531.0,0.3500841]
[1672550206097,0.15948874,16532.0,16531.0,0.0493841]
[1672550206299,0.15948874,16532.0,16531.0,0.3500841]
[1672550207774,0.15948874,16532.0,16531.0,0.0493841]
[1672550208094,0.15948874,16532.0,16531.0,0.3500841]
[1672550211657,0.06048874,16532.0,16531.0,0.3500841]
[1672550217239,0.05,16535.0,16531.0,0.3500841]
[1672550217449,0.05,16535.0,16534.0,0.3007]
[1672550218612,0.104,16535.0,16534.0,0.3087]
[1672550223336,0.16447777,16535.0,16534.0,0.3087]
[1672550225017,0.11447777,16535.0,16534.0,0.3087]
[1672550232051,0.11447777,16535.0,16534.0,0.008]
[1672550232368,0.11447777,16535.0,16534.0,0.3087]
[1672550237518,0.11447777,16535.0,16534.0,0.008]
[1672550237953,0.11447777,16535.0,16534.0,0.3087]
[1672550249413,0.11447777,16535.0,16534.0,0.008]
[1672550249731,0.11447777,16535.0,16534.0,0.3087]
[1672550255715,0.11447777,16535.0,16534.0,0.30846434]
[1672550256545,0.11447777,16535.0,16534.0,0.00776434]
[1672550256764,0.11447777,16535.0,16534.0,0.30846434]
[1672550257704,0.11447777,16535.0,16534.0,0.00776434]
[1672550257909,0.11447777,16535.0,16534.0,0.30846434]
[1672550267170,0.11447777,16535.0,16534.0,0.00776434]
[1672550267388,0.11447777,16535.0,16534.0,0.30846434]
[1672550276837,0.11447777,16535.0,16534.0,0.00776434]
[1672550277259,0.054,16535.0,16534.0,0.30846434]
[1672550278829,0.054,16535.0,16534.0,0.00776434]
[1672550279042,0.054,16535.0,16534.0,0.30846434]
[1672550283353,0.11447777,16535.0,16534.0,0.30846434]
[1672550293869,0.11447777,16535.0,16534.0,0.00776434]
[1672550294082,0.11447777,16535.0,16534.0,0.30846434]
[1672550301748,0.11447777,16535.0,16534.0,0.30837937]
[1672550302585,0.11447777,16535.0,16534.0,0.00767937]
[1672550302787,0.11447777,16535.0,16534.0,0.30837937]
[1672550304790,0.11447777,16535.0,16534.0,0.00767937]
[1672550305009,0.11447777,16535.0,16534.0,0.30837937]
[1672550327085,0.11447777,16535.0,16534.0,0.00767937]
[1672550327298,0.11447777,16535.0,16534.0,0.30837937]
[1672550337394,0.054,16535.0,16534.0,0.30837937]
[1672550343389,0.11447777,16535.0,16534.0,0.30837937]
[1672550352638,0.11447777,16535.0,16534.0,0.30823759]
[1672550363464,0.16447777,16535.0,16534.0,0.30823759]
[1672550377981,0.11447777,16535.0,16534.0,0.30823759]
[1672550382818,0.11447777,16535.0,16534.0,0.00753759]
[1672550383128,0.11447777,16535.0,16534.0,0.30823759]
[1672550397008,0.11447777,16535.0,16534.0,0.30812113]
[1672550397425,0.054,16535.0,16534.0,0.30812113]
[1672550399528,0.054,16535.0,16534.0,0.00742113]
[1672550403425,0.11447777,16535.0,16534.0,0.00742113]
[1672550406777,0.11447777,16535.0,16534.0,0.30812113]
[1672550407941,0.11447777,16535.0,16534.0,0.00742113]
[1672550408155,0.11447777,16535.0,16534.0,0.30812113]
[1672550427816,0.11447777,16535.0,16534.0,0.00742113]
[1672550428029,0.11447777,16535.0,16534.0,0.30812113]
[1672550428862,0.11447777,16535.0,16534.0,0.00742113]
[1672550429075,0.11447777,16535.0,16534.0,0.30812113]
[1672550429499,0.11447777,16535.0,16534.0,0.00742113]
[1672550429914,0.11447777,16535.0,16534.0,0.30812113]
[1672550436852,0.11447777,16535.0,16534.0,0.00742113]
[1672550437086,0.11447777,16535.0,16534.0,0.30812113]
[1672550438539,0.11447777,16535.0,16534.0,0.00742113]
[1672550438749,0.11447777,16535.0,16534.0,0.30812113]
[1672550438962,0.11447777,16535.0,16534.0,0.00742113]
[1672550439191,0.11447777,16535.0,16534.0,0.30812113]
[1672550443902,0.11447777,16535.0,16534.0,0.00742113]
[1672550444117,0.11447777,16535.0,16534.0,0.30812113]
[1672550445779,1.66828454,16535.0,16534.0,0.30812113]
[1672550447480,1.66828454,16535.0,16534.0,0.3078984]
[1672550447902,0.71897777,16535.0,16534.0,0.3078984]
[1672550449790,0.71897777,16535.0,16534.0,0.0071984]
[1672550449999,0.71897777,16535.0,16534.0,0.3078984]
[1672550456728,1.66828454,16535.0,16534.0,0.3078984]
[1672550456928,1.66828454,16535.0,16534.0,0.0071984]
[1672550457459,1.60780677,16535.0,16534.0,0.0071984]
[1672550458198,1.60780677,16535.0,16534.0,0.3078984]
[1672550463360,0.6585,16535.0,16534.0,0.3078984]
[1672550463570,0.11447777,16535.0,16534.0,0.3078984]
[1672550463882,0.71897777,16535.0,16534.0,0.3078984]
[1672550464715,0.76897777,16535.0,16534.0,0.3078984]
[1672550464921,0.71897777,16535.0,16534.0,0.3078984]
[1672550465881,0.76897777,16535.0,16534.0,0.3078984]
[1672550466096,0.71897777,16535.0,16534.0,0.3078984]
[1672550466925,0.11447777,16535.0,16534.0,0.3078984]
[1672550467356,0.76897777,16535.0,16534.0,0.3078984]
[1672550467561,0.71897777,16535.0,16534.0,0.3078984]
[1672550468409,0.11447777,16535.0,16534.0,0.3078984]
[1672550468616,0.76897777,16535.0,16534.0,0.3078984]
[1672550468818,0.71897777,16535.0,16534.0,0.3078984]
[1672550469450,0.11447777,16535.0,16534.0,0.3078984]
[1672550469660,0.76897777,16535.0,16534.0,0.3078984]
[1672550469871,0.71897777,16535.0,16534.0,0.3078984]
[1672550470614,0.11447777,16535.0,16534.0,0.3078984]
[1672550470821,0.76897777,16535.0,16534.0,0.3078984]
[1672550471025,0.71897777,16535.0,16534.0,0.3078984]
[1672550473969,0.76897777,16535.0,16534.0,0.3078984]
[1672550474177,0.71897777,16535.0,16534.0,0.3078984]
[1672550475136,0.11447777,16535.0,16534.0,0.3078984]
[1672550475335,0.76897777,16535.0,16534.0,0.3078984]
[1672550475659,0.71897777,16535.0,16534.0,0.3078984]
[1672550477331,0.11447777,16535.0,16534.0,0.3078984]
[1672550477652,0.71897777,16535.0,16534.0,0.3078984]
[1672550478492,0.11447777,16535.0,16534.0,0.3078984]
[1672550478703,0.76897777,16535.0,16534.0,0.3078984]
[1672550478916,0.71897777,16535.0,16534.0,0.3078984]
[1672550483642,0.71897777,16535.0,16534.0,0.0071984]
[1672550483850,0.71897777,16535.0,16534.0,0.3078984]
[1672550485745,0.76897777,16535.0,16534.0,0.3078984]
[1672550485957,0.71897777,16535.0,16534.0,0.3078984]
[1672550486784,0.11447777,16535.0,16534.0,0.3078984]
[1672550486997,0.76897777,16535.0,16534.0,0.3078984]
[1672550487209,0.71897777,16535.0,16534.0,0.3078984]
[1672550489731,0.71897777,16535.0,16534.0,0.0071984]
[1672550494464,1.66828454,16535.0,16534.0,0.0071984]
[1672550500349,1.66828454,16535.0,16534.0,0.00706023]
[1672550501185,0.71897777,16535.0,16534.0,0.00706023]
[1672550502558,0.71897777,16535.0,16534.0,0.05706023]
[1672550503918,0.11447777,16535.0,16534.0,0.35776023]
[1672550504339,0.71897777,16535.0,16534.0,0.35776023]
[1672550506886,0.11447777,16535.0,16534.0,0.35776023]
[1672550507074,0.76897777,16535.0,16534.0,0.35776023]
[1672550507288,0.71897777,16535.0,16534.0,0.35776023]
[1672550509281,0.71877117,16535.0,16534.0,0.35776023]
[1672550512015,0.71877117,16535.0,16534.0,0.05706023]
[1672550512219,0.71877117,16535.0,16534.0,0.35776023]
[1672550513484,0.71877117,16535.0,16534.0,0.30776023]
[1672550517045,0.71877117,16535.0,16534.0,0.00706023]
[1672550517679,0.6582934,16535.0,16534.0,0.05706023]
[1672550519064,0.0537934,16535.0,16534.0,0.05706023]
[1672550519269,0.1037934,16535.0,16534.0,0.05706023]
[1672550521052,0.1037934,16535.0,16534.0,0.00706023]
[1672550523363,1.05310017,16535.0,16534.0,0.00706023]
[1672550523569,1.71807794,16535.0,16534.0,0.00706023]
[1672550530101,0.76877117,16535.0,16534.0,0.00706023]
[1672550532312,0.76877117,16535.0,16534.0,0.05706023]
[1672550535258,0.76877117,16535.0,16534.0,0.35776023]
[1672550540298,0.76877117,16535.0,16534.0,0.30776023]
[1672550541150,1.71807794,16535.0,16534.0,0.30776023]
[1672550542934,1.71807794,16535.0,16534.0,0.00706023]
[1672550545880,0.76877117,16535.0,16534.0,0.00706023]
[1672550550077,1.71807794,16535.0,16534.0,0.00706023]
[1672550552392,0.76877117,16535.0,16534.0,0.00706023]
[1672550555866,0.76877117,16535.0,16532.0,0.3007]
[1672550555867,0.05,16534.0,16532.0,0.3007]
[1672550557172,0.05,16534.0,16532.0,0.3067]
[1672550557332,0.101,16534.0,16532.0,0.006]
[1672550558177,0.6045,16533.0,16532.0,0.006]
[1672550559025,0.6045,16533.0,16530.0,0.3507]
[1672550559235,0.05,16532.0,16530.0,0.3507]
[1672550560282,0.058,16532.0,16530.0,0.4117]
[1672550563120,0.058,16532.0,16531.0,0.3007]
[1672550563865,0.058,16532.0,16530.0,0.111]
[1672550564086,0.058,16532.0,16531.0,0.3007]
[1672550564924,0.058,16532.0,16531.0,0.3397]
[1672550564925,0.055,16532.0,16531.0,0.3397]
[1672550567978,0.055,16532.0,16531.0,0.039]
[1672550568173,0.055,16532.0,16531.0,0.3397]
[1672550573644,0.005,16532.0,16531.0,0.3397]
[1672550583729,0.06548874,16532.0,16531.0,0.3397]
[1672550589950,0.06548874,16532.0,16531.0,0.039]
[1672550598885,0.06548874,16532.0,16531.0,0.3397]
[1672550600889,0.06548874,16532.0,16531.0,0.039]
[1672550606144,0.06548874,16532.0,16531.0,0.03891658]
[1672550612241,0.06548874,16532.0,16531.0,0.08891658]
[1672550612864,0.06548874,16532.0,16531.0,0.03891658]
[1672550626638,0.06548874,16532.0,16531.0,0.08891658]
[1672550628116,0.06548874,16532.0,16531.0,0.03891658]
[1672550630000,1.61929551,16532.0,16531.0,0.03891658]
[1672550636739,0.66998874,16532.0,16531.0,0.03891658]
[1672550637793,0.6095,16532.0,16531.0,0.03891658]
[1672550643146,1.55880677,16532.0,16531.0,0.03891658]
[1672550643676,1.61929551,16532.0,16531.0,0.03891658]
[1672550652394,0.66998874,16532.0,16531.0,0.03891658]
[1672550656707,0.66998874,16532.0,16531.0,0.08891658]
[1672550657874,0.66998874,16532.0,16531.0,0.38961658]
[1672550659978,0.66998874,16532.0,16531.0,0.08891658]
[1672550660189,0.66998874,16532.0,16531.0,0.3893926]
[1672550660602,0.66998874,16532.0,16531.0,0.0886926]
[1672550660926,0.66998874,16532.0,16531.0,0.3893926]
[1672550663132,0.66998874,16532.0,16531.0,0.0886926]
[1672550665232,0.66998874,16532.0,16531.0,0.3893926]
[1672550665656,0.11548874,16532.0,16531.0,0.3893926]
[1672550666283,0.11548874,16532.0,16531.0,0.0886926]
[1672550666502,0.11548874,16532.0,16531.0,0.3893926]
[1672550668183,0.11548874,16532.0,16531.0,0.3393926]
[1672550680686,0.06548874,16532.0,16531.0,0.3393926]
[1672550689622,0.06548874,16532.0,16531.0,0.0386926]
[1672550689930,0.06548874,16532.0,16531.0,0.3893926]
[1672550694452,0.06548874,16532.0,16531.0,0.0886926]
[1672550694661,0.06548874,16532.0,16531.0,0.3893926]
[1672550694970,0.06548874,16532.0,16531.0,0.0886926]
[1672550695185,0.06548874,16532.0,16531.0,0.3893926]
[1672550697917,0.005,16532.0,16531.0,0.3893926]
[1672550703798,0.06548874,16532.0,16531.0,0.3893926]
[1672550709476,0.06548874,16532.0,16531.0,0.38927036]
[1672550717461,0.06530279,16532.0,16531.0,0.38927036]
[1672550719659,0.06530279,16532.0,16531.0,0.08857036]
[1672550719867,0.06530279,16532.0,16531.0,0.38927036]
[1672550720088,0.06530279,16532.0,16531.0,0.08857036]
[1672550720299,0.06530279,16532.0,16531.0,0.38927036]
[1672550721771,0.06530279,16532.0,16531.0,0.08857036]
[1672550721979,0.06530279,16532.0,16531.0,0.38927036]
[1672550723552,0.06530279,16532.0,16531.0,0.08857036]
[1672550723767,0.06530279,16532.0,16531.0,0.38927036]
[1672550725025,0.06530279,16532.0,16531.0,0.08857036]
[1672550725240,0.06530279,16532.0,16531.0,0.38927036]
[1672550725557,0.06530279,16532.0,16531.0,0.08857036]
[1672550725761,0.06530279,16532.0,16531.0,0.38927036]
[1672550726182,0.06530279,16532.0,16531.0,0.08857036]
[1672550726394,0.06530279,16532.0,16531.0,0.38927036]
[1672550743736,0.06530279,16532.0,16531.0,0.08857036]
[1672550743936,0.06530279,16532.0,16531.0,0.38927036]
[1672550757813,0.00481405,16532.0,16531.0,0.38927036]
[1672550764027,0.06530279,16532.0,16531.0,0.38927036]
[1672550765817,0.06530279,16532.0,16531.0,0.08857036]
[1672550766131,0.06530279,16532.0,16531.0,0.38927036]
[1672550770866,0.06530279,16532.0,16531.0,0.38904059]
[1672550773707,0.06530279,16532.0,16531.0,0.38884059]
[1672550787703,0.06530279,16532.0,16531.0,0.38894059]
[1672550788225,0.06540279,16532.0,16531.0,0.38894059]
[1672550804935,0.06540279,16532.0,16531.0,0.08824059]
[1672550805247,0.06540279,16532.0,16531.0,0.38894059]
[1672550815854,0.06540279,16532.0,16531.0,0.08824059]
[1672550816065,0.06540279,16532.0,16531.0,0.38894059]
[1672550818065,0.00491405,16532.0,16531.0,0.38894059]
[1672550818263,0.00491405,16532.0,16531.0,0.38887407]
[1672550819959,0.00491405,16532.0,16531.0,0.08817407]
[1672550820169,0.00491405,16532.0,16531.0,0.38887407]
[1672550823948,0.06540279,16532.0,16531.0,0.38887407]
[1672550834676,0.06540279,16532.0,16531.0,0.08817407]
[1672550834884,0.06540279,16532.0,16531.0,0.38887407]
[1672550842874,0.06540279,16532.0,16531.0,0.08817407]
[1672550843083,0.06540279,16532.0,16531.0,0.38887407]
[1672550843917,0.06540279,16532.0,16531.0,0.08817407]
[1672550844121,0.06540279,16532.0,16531.0,0.38887407]
[1672550846864,0.06540279,16532.0,16531.0,0.08817407]
[1672550847075,0.06540279,16532.0,16531.0,0.38887407]
[1672550860314,0.06540279,16532.0,16531.0,0.08817407]
[1672550860527,0.06540279,16532.0,16531.0,0.38887407]
[1672550871259,0.06540279,16532.0,16531.0,0.38875861]
[1672550873254,0.06540279,16532.0,16531.0,0.08805861]